[Event "Titled Tuesday Blitz August 22 Early 2023"]
[White "Fule, Simon"]
[Black "Kosakowski, Jakub"]
[WhiteFideId "787515"]
[BlackFideId "1185080"]
[WhiteElo "2448"]
[BlackElo "2804"]
[Result "1-0"]
[Round "1"]
[TimeControl "180+1"]
[Date "2023.08.22"]
[WhiteClock "0:00:06"]
[BlackClock "0:00:35"]
[Board "73"]

1. e4 {[%clk 0:02:59]}  c5 {[%clk 0:02:55]} 2. Nf3 {[%clk 0:02:59]}  d6 {[%clk 0:02:56]} 3. d4 {[%clk 0:02:59]}  cxd4 {[%clk 0:02:55]} 4. Nxd4 {[%clk 0:02:59]}  Nf6 {[%clk 0:02:56]} 5. Nc3 {[%clk 0:02:59]}  a6 {[%clk 0:02:57]} 6. f3 {[%clk 0:02:58]}  e5 {[%clk 0:02:55]} 7. Nb3 {[%clk 0:02:57]}  Be7 {[%clk 0:02:55]} 8. Be3 {[%clk 0:02:57]}  Be6 {[%clk 0:02:55]} 9. Qd2 {[%clk 0:02:53]}  O-O {[%clk 0:02:54]} 10. O-O-O {[%clk 0:02:48]}  Nbd7 {[%clk 0:02:54]} 11. g4 {[%clk 0:02:47]}  b5 {[%clk 0:02:54]} 12. Rg1 {[%clk 0:02:47]}  b4 {[%clk 0:02:52]} 13. Nd5 {[%clk 0:02:47]}  Bxd5 {[%clk 0:02:51]} 14. exd5 {[%clk 0:02:48]}  a5 {[%clk 0:02:51]} 15. g5 {[%clk 0:02:44]}  Nh5 {[%clk 0:02:50]} 16. Kb1 {[%clk 0:02:41]}  Nb6 {[%clk 0:02:38]} 17. Rg4 {[%clk 0:02:24]}  g6 {[%clk 0:02:34]} 18. Bb5 {[%clk 0:02:11]}  Qc8 {[%clk 0:02:16]} 19. Bxb6 {[%clk 0:02:06]}  a4 {[%clk 0:02:11]} 20. Na5 {[%clk 0:01:36]}  Bd8 {[%clk 0:01:53]} 21. Bxd8 {[%clk 0:01:32]}  Qxd8 {[%clk 0:01:54]} 22. Nc6 {[%clk 0:01:27]}  Qc7 {[%clk 0:01:53]} 23. Rxb4 {[%clk 0:01:23]}  Nf4 {[%clk 0:01:50]} 24. Rxa4 {[%clk 0:01:13]}  Rxa4 {[%clk 0:01:47]} 25. Bxa4 {[%clk 0:01:14]}  Ra8 {[%clk 0:01:47]} 26. Bb3 {[%clk 0:01:10]}  Kg7 {[%clk 0:01:45]} 27. Nb4 {[%clk 0:01:03]}  Qe7 {[%clk 0:01:39]} 28. h4 {[%clk 0:01:02]}  h6 {[%clk 0:01:38]} 29. gxh6+ {[%clk 0:00:56]}  Kh7 {[%clk 0:01:38]} 30. Rh1 {[%clk 0:00:49]}  Qf6 {[%clk 0:01:29]} 31. Nd3 {[%clk 0:00:45]}  Nh5 {[%clk 0:01:29]} 32. Qe3 {[%clk 0:00:32]}  Qf5 {[%clk 0:01:18]} 33. a3 {[%clk 0:00:30]}  Rb8 {[%clk 0:01:16]} 34. Ka2 {[%clk 0:00:30]}  Qc8 {[%clk 0:01:16]} 35. f4 {[%clk 0:00:28]}  e4 {[%clk 0:01:14]} 36. Qxe4 {[%clk 0:00:20]}  Ng3 {[%clk 0:01:13]} 37. Qe7 {[%clk 0:00:16]}  Rb7 {[%clk 0:01:09]} 38. Qe1 {[%clk 0:00:16]}  Nxh1 {[%clk 0:01:08]} 39. Qxh1 {[%clk 0:00:17]}  Qg4 {[%clk 0:01:08]} 40. Qe4 {[%clk 0:00:14]}  Kxh6 {[%clk 0:01:08]} 41. a4 {[%clk 0:00:13]}  Qxh4 {[%clk 0:01:08]} 42. a5 {[%clk 0:00:13]}  Qd8 {[%clk 0:01:06]} 43. a6 {[%clk 0:00:13]}  Qa5+ {[%clk 0:01:07]} 44. Qa4 {[%clk 0:00:13]}  Rb5 {[%clk 0:01:05]} 45. Qxa5 {[%clk 0:00:07]}  Rxa5+ {[%clk 0:01:06]} 46. Kb1 {[%clk 0:00:07]}  Rxa6 {[%clk 0:01:06]} 47. c4 {[%clk 0:00:08]}  Kh5 {[%clk 0:01:05]} 48. Kc2 {[%clk 0:00:08]}  Kg4 {[%clk 0:01:06]} 49. c5 {[%clk 0:00:08]}  dxc5 {[%clk 0:01:03]} 50. Nxc5 {[%clk 0:00:09]}  Ra5 {[%clk 0:01:03]} 51. Nd3 {[%clk 0:00:07]}  Kf5 {[%clk 0:01:03]} 52. Kc3 {[%clk 0:00:06]}  Ke4 {[%clk 0:01:04]} 53. d6 {[%clk 0:00:05]}  Ra8 {[%clk 0:00:55]} 54. Bxf7 {[%clk 0:00:04]}  Kf5 {[%clk 0:00:55]} 55. d7 {[%clk 0:00:04]}  Rd8 {[%clk 0:00:54]} 56. Be8 {[%clk 0:00:04]}  Ke6 {[%clk 0:00:53]} 57. Ne5 {[%clk 0:00:04]}  g5 {[%clk 0:00:51]} 58. Nc6 {[%clk 0:00:04]}  g4 {[%clk 0:00:31]} 59. Nxd8+ {[%clk 0:00:04]}  Kf5 {[%clk 0:00:31]} 60. Nc6 {[%clk 0:00:04]}  g3 {[%clk 0:00:32]} 61. d8=Q {[%clk 0:00:05]}  g2 {[%clk 0:00:33]} 62. Qd5+ {[%clk 0:00:05]}  Kg4 {[%clk 0:00:33]} 63. Qxg2+ {[%clk 0:00:06]}  Kxf4 {[%clk 0:00:34]} 64. Qf2+ {[%clk 0:00:06]}  Ke4 {[%clk 0:00:34]} 65. Qe2+ {[%clk 0:00:06]}  Kd5 {[%clk 0:00:35]} 66. Qe5# {[%clk 0:00:06]} 1-0


[Site "https://www.chess.com"]

[Event "Titled Tuesday Blitz August 22 Early 2023"]
[White "Materia, Marco"]
[Black "WindWhistler11"]
[WhiteFideId "45150451"]
[WhiteElo "2797"]
[BlackElo "2441"]
[Result "1-0"]
[Round "1"]
[TimeControl "180+1"]
[Date "2023.08.22"]
[WhiteClock "0:01:43"]
[BlackClock "0:00:25"]
[Board "76"]

1. d4 {[%clk 0:03:00]}  Nf6 {[%clk 0:02:59]} 2. c4 {[%clk 0:03:01]}  e6 {[%clk 0:02:59]} 3. Nf3 {[%clk 0:03:02]}  c5 {[%clk 0:02:53]} 4. d5 {[%clk 0:03:01]}  exd5 {[%clk 0:02:53]} 5. cxd5 {[%clk 0:03:00]}  Bd6 {[%clk 0:02:54]} 6. Nc3 {[%clk 0:02:58]}  O-O {[%clk 0:02:54]} 7. e4 {[%clk 0:02:58]}  Re8 {[%clk 0:02:55]} 8. Bd3 {[%clk 0:02:54]}  Bc7 {[%clk 0:02:55]} 9. O-O {[%clk 0:02:53]}  d6 {[%clk 0:02:56]} 10. h3 {[%clk 0:02:52]}  a6 {[%clk 0:02:56]} 11. a4 {[%clk 0:02:52]}  Nbd7 {[%clk 0:02:57]} 12. Re1 {[%clk 0:02:51]}  Nf8 {[%clk 0:02:53]} 13. Bf4 {[%clk 0:02:48]}  Ng6 {[%clk 0:02:52]} 14. Bh2 {[%clk 0:02:49]}  Nh5 {[%clk 0:02:43]} 15. e5 {[%clk 0:02:34]}  Ngf4 {[%clk 0:02:20]} 16. Ne4 {[%clk 0:02:01]}  Bf5 {[%clk 0:01:54]} 17. exd6 {[%clk 0:01:49]}  Bxd6 {[%clk 0:00:48]} 18. Nxd6 {[%clk 0:01:46]}  Rxe1+ {[%clk 0:00:47]} 19. Nxe1 {[%clk 0:01:46]}  Bxd3 {[%clk 0:00:47]} 20. Nxd3 {[%clk 0:01:45]}  Qxd6 {[%clk 0:00:46]} 21. Qxh5 {[%clk 0:01:44]}  Qxd5 {[%clk 0:00:25]} 22. Nxf4 {[%clk 0:01:43]} 1-0


[Site "https://www.chess.com"]

[Event "Titled Tuesday Blitz August 22 Early 2023"]
[White "Vivas Zamora, Fabian Ernesto"]
[Black "Vakhlamov, Igor L."]
[WhiteFideId "3902480"]
[BlackFideId "24126748"]
[WhiteElo "2441"]
[BlackElo "2795"]
[Result "0-1"]
[Round "1"]
[TimeControl "180+1"]
[Date "2023.08.22"]
[WhiteClock "0:00:00"]
[BlackClock "0:01:15"]
[Board "77"]

1. e4 {[%clk 0:03:00]}  c5 {[%clk 0:02:59]} 2. Nf3 {[%clk 0:03:00]}  e6 {[%clk 0:03:00]} 3. d4 {[%clk 0:02:57]}  cxd4 {[%clk 0:03:01]} 4. Nxd4 {[%clk 0:02:58]}  Nf6 {[%clk 0:03:02]} 5. Nc3 {[%clk 0:02:56]}  Nc6 {[%clk 0:03:02]} 6. Ndb5 {[%clk 0:02:53]}  Bc5 {[%clk 0:03:02]} 7. Bf4 {[%clk 0:02:50]}  O-O {[%clk 0:03:02]} 8. Bc7 {[%clk 0:02:48]}  Qe7 {[%clk 0:03:02]} 9. Bd6 {[%clk 0:02:49]}  Bxd6 {[%clk 0:03:03]} 10. Qxd6 {[%clk 0:02:49]}  Qd8 {[%clk 0:03:03]} 11. O-O-O {[%clk 0:02:28]}  a6 {[%clk 0:03:01]} 12. Nd4 {[%clk 0:02:26]}  Ne7 {[%clk 0:03:02]} 13. f3 {[%clk 0:02:17]}  Ne8 {[%clk 0:03:02]} 14. Qg3 {[%clk 0:02:11]}  b5 {[%clk 0:03:02]} 15. Nb3 {[%clk 0:02:02]}  Qb6 {[%clk 0:02:34]} 16. Kb1 {[%clk 0:01:48]}  b4 {[%clk 0:02:33]} 17. Na4 {[%clk 0:01:41]}  Qc6 {[%clk 0:02:34]} 18. Nac5 {[%clk 0:01:32]}  a5 {[%clk 0:02:24]} 19. Nd3 {[%clk 0:01:26]}  a4 {[%clk 0:02:18]} 20. Nd4 {[%clk 0:01:25]}  Qb6 {[%clk 0:02:19]} 21. Ne5 {[%clk 0:01:16]}  d5 {[%clk 0:02:05]} 22. exd5 {[%clk 0:00:41]}  Nxd5 {[%clk 0:02:06]} 23. Nc4 {[%clk 0:00:37]}  Qc5 {[%clk 0:02:00]} 24. Bd3 {[%clk 0:00:26]}  Ba6 {[%clk 0:01:52]} 25. Qh4 {[%clk 0:00:16]}  Nef6 {[%clk 0:01:38]} 26. Ne5 {[%clk 0:00:10]}  a3 {[%clk 0:01:34]} 27. Nd7 {[%clk 0:00:05]}  Qc7 {[%clk 0:01:24]} 28. Nxf8 {[%clk 0:00:00]}  Kxf8 {[%clk 0:01:15]} 0-1


[Site "https://www.chess.com"]

[Event "Titled Tuesday Blitz August 22 Early 2023"]
[White "Gorovets, Andrey"]
[Black "MateoReyes"]
[WhiteFideId "13504037"]
[WhiteElo "2788"]
[BlackElo "2440"]
[Result "1-0"]
[Round "1"]
[TimeControl "180+1"]
[Date "2023.08.22"]
[WhiteClock "0:00:04"]
[BlackClock "0:00:00"]
[Board "78"]

1. d4 {[%clk 0:02:56]}  Nf6 {[%clk 0:02:58]} 2. c4 {[%clk 0:02:56]}  g6 {[%clk 0:02:58]} 3. g3 {[%clk 0:02:56]}  Bg7 {[%clk 0:02:58]} 4. Bg2 {[%clk 0:02:56]}  O-O {[%clk 0:02:58]} 5. Nc3 {[%clk 0:02:57]}  d6 {[%clk 0:02:58]} 6. Nf3 {[%clk 0:02:57]}  Nc6 {[%clk 0:02:58]} 7. O-O {[%clk 0:02:57]}  Bf5 {[%clk 0:02:57]} 8. Ne1 {[%clk 0:02:54]}  e5 {[%clk 0:02:54]} 9. d5 {[%clk 0:02:53]}  Ne7 {[%clk 0:02:53]} 10. e4 {[%clk 0:02:53]}  Bc8 {[%clk 0:02:51]} 11. Nd3 {[%clk 0:02:50]}  a5 {[%clk 0:02:51]} 12. c5 {[%clk 0:02:49]}  Ne8 {[%clk 0:02:40]} 13. cxd6 {[%clk 0:02:38]}  cxd6 {[%clk 0:02:40]} 14. f4 {[%clk 0:02:37]}  f5 {[%clk 0:02:35]} 15. fxe5 {[%clk 0:02:34]}  dxe5 {[%clk 0:02:34]} 16. Nc5 {[%clk 0:02:18]}  Nd6 {[%clk 0:02:20]} 17. Qb3 {[%clk 0:02:14]}  Kh8 {[%clk 0:02:10]} 18. Be3 {[%clk 0:01:58]}  fxe4 {[%clk 0:02:02]} 19. Rxf8+ {[%clk 0:01:52]}  Qxf8 {[%clk 0:01:58]} 20. Rf1 {[%clk 0:01:50]}  Qg8 {[%clk 0:01:57]} 21. N3xe4 {[%clk 0:01:35]}  Nef5 {[%clk 0:01:37]} 22. Nxd6 {[%clk 0:01:31]}  Nxd6 {[%clk 0:01:33]} 23. Ne6 {[%clk 0:01:31]}  Nf5 {[%clk 0:01:24]} 24. Nc7 {[%clk 0:01:11]}  Nxe3 {[%clk 0:01:14]} 25. Qxe3 {[%clk 0:01:12]}  Rb8 {[%clk 0:01:13]} 26. d6 {[%clk 0:01:09]}  Bd7 {[%clk 0:01:06]} 27. Bd5 {[%clk 0:00:59]}  Qd8 {[%clk 0:01:04]} 28. Rf7 {[%clk 0:00:48]}  Bf5 {[%clk 0:01:03]} 29. Qc5 {[%clk 0:00:33]}  Bf8 {[%clk 0:00:50]} 30. Nb5 {[%clk 0:00:31]}  Rc8 {[%clk 0:00:47]} 31. Rc7 {[%clk 0:00:20]}  Rxc7 {[%clk 0:00:27]} 32. Qxc7 {[%clk 0:00:21]}  Qg5 {[%clk 0:00:20]} 33. Qc3 {[%clk 0:00:11]}  Qf6 {[%clk 0:00:16]} 34. Bxb7 {[%clk 0:00:07]}  Bxd6 {[%clk 0:00:14]} 35. Nxd6 {[%clk 0:00:07]}  Qxd6 {[%clk 0:00:14]} 36. Bf3 {[%clk 0:00:06]}  Qd4+ {[%clk 0:00:14]} 37. Qxd4 {[%clk 0:00:06]}  exd4 {[%clk 0:00:14]} 38. Kf2 {[%clk 0:00:06]}  Bb1 {[%clk 0:00:14]} 39. a3 {[%clk 0:00:06]}  Kg7 {[%clk 0:00:14]} 40. b4 {[%clk 0:00:07]}  axb4 {[%clk 0:00:13]} 41. axb4 {[%clk 0:00:08]}  Kf6 {[%clk 0:00:13]} 42. b5 {[%clk 0:00:08]}  Ke7 {[%clk 0:00:12]} 43. b6 {[%clk 0:00:08]}  Kd6 {[%clk 0:00:12]} 44. Bd5 {[%clk 0:00:08]}  Bf5 {[%clk 0:00:11]} 45. Ke2 {[%clk 0:00:07]}  Bd7 {[%clk 0:00:08]} 46. Kd2 {[%clk 0:00:07]}  Bf5 {[%clk 0:00:06]} 47. Bg8 {[%clk 0:00:06]}  h6 {[%clk 0:00:05]} 48. Bd5 {[%clk 0:00:06]}  g5 {[%clk 0:00:05]} 49. Bf3 {[%clk 0:00:05]}  Bd7 {[%clk 0:00:05]} 50. Kd3 {[%clk 0:00:04]}  Kc5 {[%clk 0:00:03]} 51. b7 {[%clk 0:00:04]}  Bb5+ {[%clk 0:00:00]} 52. Kd2 {[%clk 0:00:04]} 1-0


[Site "https://www.chess.com"]

[Event "Titled Tuesday Blitz August 22 Early 2023"]
[White "Adewumi, Tanitoluwa"]
[Black "LeoLV10"]
[WhiteFideId "30966396"]
[WhiteElo "2786"]
[BlackElo "2438"]
[Result "1-0"]
[Round "1"]
[TimeControl "180+1"]
[Date "2023.08.22"]
[WhiteClock "0:00:54"]
[BlackClock "0:00:20"]
[Board "80"]

1. Nf3 {[%clk 0:02:54]}  Nf6 {[%clk 0:02:59]} 2. b3 {[%clk 0:02:53]}  g6 {[%clk 0:02:46]} 3. Bb2 {[%clk 0:02:54]}  Bg7 {[%clk 0:02:46]} 4. g3 {[%clk 0:02:54]}  O-O {[%clk 0:02:46]} 5. Bg2 {[%clk 0:02:54]}  c6 {[%clk 0:02:44]} 6. O-O {[%clk 0:02:54]}  Qc7 {[%clk 0:02:44]} 7. d3 {[%clk 0:02:51]}  Re8 {[%clk 0:02:44]} 8. Nbd2 {[%clk 0:02:48]}  d6 {[%clk 0:02:43]} 9. c4 {[%clk 0:02:48]}  e5 {[%clk 0:02:42]} 10. e3 {[%clk 0:02:46]}  Bf5 {[%clk 0:02:40]} 11. Qe2 {[%clk 0:02:41]}  Nbd7 {[%clk 0:02:37]} 12. a3 {[%clk 0:02:40]}  Rad8 {[%clk 0:02:36]} 13. Rfd1 {[%clk 0:02:37]}  Nc5 {[%clk 0:02:36]} 14. e4 {[%clk 0:02:30]}  Bg4 {[%clk 0:02:33]} 15. h3 {[%clk 0:02:30]}  Bd7 {[%clk 0:02:25]} 16. b4 {[%clk 0:02:28]}  Ne6 {[%clk 0:02:25]} 17. Rac1 {[%clk 0:02:20]}  c5 {[%clk 0:02:24]} 18. b5 {[%clk 0:02:08]}  b6 {[%clk 0:02:18]} 19. a4 {[%clk 0:02:05]}  a6 {[%clk 0:02:11]} 20. Nf1 {[%clk 0:02:01]}  a5 {[%clk 0:02:10]} 21. Ne3 {[%clk 0:02:00]}  Qc8 {[%clk 0:02:03]} 22. Qf1 {[%clk 0:01:56]}  Nd4 {[%clk 0:01:53]} 23. Nd2 {[%clk 0:01:55]}  Nh5 {[%clk 0:01:49]} 24. Nb1 {[%clk 0:01:52]}  f5 {[%clk 0:01:44]} 25. exf5 {[%clk 0:01:46]}  gxf5 {[%clk 0:01:42]} 26. Nd5 {[%clk 0:01:41]}  Qb8 {[%clk 0:01:41]} 27. Bxd4 {[%clk 0:01:36]}  cxd4 {[%clk 0:01:39]} 28. Re1 {[%clk 0:01:30]}  Nf6 {[%clk 0:01:34]} 29. Nd2 {[%clk 0:01:26]}  Kh8 {[%clk 0:01:31]} 30. Re2 {[%clk 0:01:24]}  Rg8 {[%clk 0:01:31]} 31. Ne7 {[%clk 0:01:21]}  Rgf8 {[%clk 0:01:26]} 32. Rce1 {[%clk 0:01:17]}  Rde8 {[%clk 0:01:18]} 33. Nc6 {[%clk 0:01:12]}  Qc8 {[%clk 0:01:15]} 34. f4 {[%clk 0:01:04]}  Nh5 {[%clk 0:01:07]} 35. Qf3 {[%clk 0:01:01]}  e4 {[%clk 0:00:51]} 36. Qxh5 {[%clk 0:00:57]}  e3 {[%clk 0:00:27]} 37. Nf3 {[%clk 0:00:55]}  Kg8 {[%clk 0:00:27]} 38. Ng5 {[%clk 0:00:54]}  h6 {[%clk 0:00:26]} 39. Bd5+ {[%clk 0:00:54]}  Kh8 {[%clk 0:00:26]} 40. Qg6 {[%clk 0:00:54]}  hxg5 {[%clk 0:00:22]} 41. Qh5+ {[%clk 0:00:54]}  Bh6 {[%clk 0:00:20]} 42. Qxh6# {[%clk 0:00:54]} 1-0


[Site "https://www.chess.com"]

[Event "Titled Tuesday Blitz August 22 Early 2023"]
[White "Orozbaev, Eldiar"]
[Black "Eggleston, Thomas A"]
[WhiteFideId "13802240"]
[BlackFideId "412139"]
[WhiteElo "2770"]
[BlackElo "2433"]
[Result "1-0"]
[Round "1"]
[TimeControl "180+1"]
[Date "2023.08.22"]
[WhiteClock "0:02:11"]
[BlackClock "0:00:36"]
[Board "82"]

1. e4 {[%clk 0:02:54]}  e6 {[%clk 0:02:59]} 2. d4 {[%clk 0:02:54]}  d5 {[%clk 0:02:59]} 3. Nc3 {[%clk 0:02:54]}  Nf6 {[%clk 0:02:56]} 4. e5 {[%clk 0:02:54]}  Ne4 {[%clk 0:02:56]} 5. Nxe4 {[%clk 0:02:52]}  dxe4 {[%clk 0:02:55]} 6. c3 {[%clk 0:02:49]}  c5 {[%clk 0:02:55]} 7. Bb5+ {[%clk 0:02:45]}  Bd7 {[%clk 0:02:55]} 8. Bxd7+ {[%clk 0:02:44]}  Qxd7 {[%clk 0:02:53]} 9. Ne2 {[%clk 0:02:43]}  Nc6 {[%clk 0:02:53]} 10. O-O {[%clk 0:02:41]}  Be7 {[%clk 0:02:38]} 11. Be3 {[%clk 0:02:40]}  cxd4 {[%clk 0:02:31]} 12. cxd4 {[%clk 0:02:39]}  Rd8 {[%clk 0:02:22]} 13. Qc2 {[%clk 0:02:35]}  O-O {[%clk 0:01:53]} 14. Qxe4 {[%clk 0:02:34]}  f5 {[%clk 0:01:53]} 15. exf6 {[%clk 0:02:34]}  Bxf6 {[%clk 0:01:53]} 16. Rad1 {[%clk 0:02:33]}  Kh8 {[%clk 0:01:47]} 17. b3 {[%clk 0:02:32]}  Nb4 {[%clk 0:01:33]} 18. Nf4 {[%clk 0:02:27]}  e5 {[%clk 0:01:16]} 19. dxe5 {[%clk 0:02:20]}  Qxd1 {[%clk 0:01:15]} 20. exf6 {[%clk 0:02:20]}  Qd6 {[%clk 0:00:51]} 21. fxg7+ {[%clk 0:02:15]}  Kxg7 {[%clk 0:00:51]} 22. Ne6+ {[%clk 0:02:13]}  Kf7 {[%clk 0:00:39]} 23. Nxd8+ {[%clk 0:02:11]}  Rxd8 {[%clk 0:00:36]} 24. Qxh7+ {[%clk 0:02:11]} 1-0


[Site "https://www.chess.com"]

[Event "Titled Tuesday Blitz August 22 Early 2023"]
[White "Girsh, Daniel"]
[Black "Kosteniuk, Alexandra"]
[WhiteFideId "30949190"]
[BlackFideId "4128125"]
[WhiteElo "2429"]
[BlackElo "2749"]
[Result "0-1"]
[Round "1"]
[TimeControl "180+1"]
[Date "2023.08.22"]
[WhiteClock "0:00:19"]
[BlackClock "0:00:19"]
[Board "85"]

1. d4 {[%clk 0:02:59]}  f5 {[%clk 0:02:59]} 2. c4 {[%clk 0:02:57]}  Nf6 {[%clk 0:02:58]} 3. g3 {[%clk 0:02:58]}  g6 {[%clk 0:02:59]} 4. Bg2 {[%clk 0:02:56]}  Bg7 {[%clk 0:02:59]} 5. Nf3 {[%clk 0:02:51]}  O-O {[%clk 0:02:57]} 6. O-O {[%clk 0:02:51]}  d6 {[%clk 0:02:58]} 7. Nbd2 {[%clk 0:02:48]}  a5 {[%clk 0:02:54]} 8. b3 {[%clk 0:02:48]}  a4 {[%clk 0:02:53]} 9. bxa4 {[%clk 0:02:46]}  Bd7 {[%clk 0:02:52]} 10. Bb2 {[%clk 0:02:45]}  Bxa4 {[%clk 0:02:51]} 11. Nb3 {[%clk 0:02:45]}  Ne4 {[%clk 0:02:46]} 12. Nfd2 {[%clk 0:02:42]}  Nxd2 {[%clk 0:02:34]} 13. Qxd2 {[%clk 0:02:41]}  Nc6 {[%clk 0:02:35]} 14. Rac1 {[%clk 0:02:28]}  Qe8 {[%clk 0:02:30]} 15. Rfe1 {[%clk 0:02:03]}  Bxb3 {[%clk 0:01:37]} 16. axb3 {[%clk 0:02:03]}  Ra2 {[%clk 0:01:38]} 17. Ra1 {[%clk 0:02:01]}  Rxb2 {[%clk 0:01:34]} 18. Qxb2 {[%clk 0:01:58]}  Bxd4 {[%clk 0:01:34]} 19. Bxc6 {[%clk 0:01:34]}  Bxb2 {[%clk 0:01:33]} 20. Bxe8 {[%clk 0:01:34]}  Bxa1 {[%clk 0:01:34]} 21. Bxg6 {[%clk 0:01:35]}  Bc3 {[%clk 0:01:21]} 22. Rc1 {[%clk 0:01:33]}  hxg6 {[%clk 0:01:16]} 23. Rxc3 {[%clk 0:01:33]}  Ra8 {[%clk 0:01:17]} 24. b4 {[%clk 0:01:22]}  Ra4 {[%clk 0:01:14]} 25. b5 {[%clk 0:01:17]}  Kf7 {[%clk 0:01:12]} 26. f4 {[%clk 0:01:15]}  Kf6 {[%clk 0:01:00]} 27. Kf2 {[%clk 0:01:14]}  e5 {[%clk 0:00:59]} 28. c5 {[%clk 0:01:09]}  d5 {[%clk 0:00:56]} 29. fxe5+ {[%clk 0:01:07]}  Kxe5 {[%clk 0:00:56]} 30. Re3+ {[%clk 0:00:54]}  Re4 {[%clk 0:00:43]} 31. Ra3 {[%clk 0:00:42]}  Rb4 {[%clk 0:00:41]} 32. Re3+ {[%clk 0:00:32]}  Kf6 {[%clk 0:00:38]} 33. c6 {[%clk 0:00:27]}  Rxb5 {[%clk 0:00:35]} 34. cxb7 {[%clk 0:00:27]}  Rxb7 {[%clk 0:00:36]} 35. Re8 {[%clk 0:00:28]}  c5 {[%clk 0:00:32]} 36. Rc8 {[%clk 0:00:28]}  c4 {[%clk 0:00:31]} 37. e3 {[%clk 0:00:28]}  Rb2+ {[%clk 0:00:30]} 38. Kf3 {[%clk 0:00:28]}  Rxh2 {[%clk 0:00:30]} 39. Rc5 {[%clk 0:00:28]}  Rd2 {[%clk 0:00:30]} 40. Rc6+ {[%clk 0:00:28]}  Kg5 {[%clk 0:00:29]} 41. Rc8 {[%clk 0:00:28]}  Rd3 {[%clk 0:00:29]} 42. Ke2 {[%clk 0:00:25]}  Kg4 {[%clk 0:00:29]} 43. Rc6 {[%clk 0:00:24]}  g5 {[%clk 0:00:28]} 44. Rf6 {[%clk 0:00:24]}  Ra3 {[%clk 0:00:27]} 45. Rd6 {[%clk 0:00:22]}  Ra2+ {[%clk 0:00:27]} 46. Ke1 {[%clk 0:00:22]}  Ra5 {[%clk 0:00:26]} 47. Rf6 {[%clk 0:00:21]}  Rc5 {[%clk 0:00:20]} 48. Kd2 {[%clk 0:00:21]}  c3+ {[%clk 0:00:20]} 49. Kc2 {[%clk 0:00:21]}  Rc4 {[%clk 0:00:20]} 50. Rd6 {[%clk 0:00:20]}  Re4 {[%clk 0:00:17]} 51. Rxd5 {[%clk 0:00:20]}  Rxe3 {[%clk 0:00:18]} 52. Rc5 {[%clk 0:00:19]}  Rxg3 {[%clk 0:00:18]} 53. Rd5 {[%clk 0:00:18]}  f4 {[%clk 0:00:18]} 54. Rd4 {[%clk 0:00:18]}  Re3 {[%clk 0:00:18]} 55. Rd8 {[%clk 0:00:18]}  Kf3 {[%clk 0:00:18]} 56. Rg8 {[%clk 0:00:19]}  g4 {[%clk 0:00:18]} 57. Rf8 {[%clk 0:00:19]}  g3 {[%clk 0:00:18]} 58. Rg8 {[%clk 0:00:19]}  g2 {[%clk 0:00:19]} 0-1


[Site "https://www.chess.com"]

[Event "Titled Tuesday Blitz August 22 Early 2023"]
[White "Weetik, Vjacheslav"]
[Black "Pein, Jonathan"]
[WhiteFideId "4153472"]
[BlackFideId "417092"]
[WhiteElo "2745"]
[BlackElo "2429"]
[Result "1-0"]
[Round "1"]
[TimeControl "180+1"]
[Date "2023.08.22"]
[WhiteClock "0:00:05"]
[BlackClock "0:00:04"]
[Board "86"]

1. d4 {[%clk 0:03:00]}  d5 {[%clk 0:02:56]} 2. Bf4 {[%clk 0:03:00]}  h5 {[%clk 0:02:56]} 3. e3 {[%clk 0:02:53]}  e5 {[%clk 0:02:54]} 4. Bxe5 {[%clk 0:02:30]}  f6 {[%clk 0:02:54]} 5. Bf4 {[%clk 0:02:21]}  g5 {[%clk 0:02:53]} 6. Bxg5 {[%clk 0:01:44]}  fxg5 {[%clk 0:02:54]} 7. c4 {[%clk 0:01:42]}  Bb4+ {[%clk 0:02:53]} 8. Nc3 {[%clk 0:01:42]}  Nf6 {[%clk 0:02:45]} 9. Nf3 {[%clk 0:01:35]}  g4 {[%clk 0:02:30]} 10. Ne5 {[%clk 0:01:34]}  Nbd7 {[%clk 0:02:13]} 11. Ng6 {[%clk 0:01:16]}  Rg8 {[%clk 0:02:05]} 12. Nf4 {[%clk 0:01:14]}  c6 {[%clk 0:02:02]} 13. Bd3 {[%clk 0:01:09]}  Qa5 {[%clk 0:01:43]} 14. O-O {[%clk 0:01:07]}  Bxc3 {[%clk 0:01:34]} 15. bxc3 {[%clk 0:01:07]}  Kf7 {[%clk 0:01:22]} 16. f3 {[%clk 0:00:50]}  Nf8 {[%clk 0:01:02]} 17. Qb3 {[%clk 0:00:45]}  Qb6 {[%clk 0:00:53]} 18. Qc2 {[%clk 0:00:43]}  gxf3 {[%clk 0:00:26]} 19. Rxf3 {[%clk 0:00:43]}  Bg4 {[%clk 0:00:27]} 20. Rf2 {[%clk 0:00:38]}  Ke7 {[%clk 0:00:27]} 21. Rb1 {[%clk 0:00:34]}  Qc7 {[%clk 0:00:27]} 22. Qa4 {[%clk 0:00:30]}  b6 {[%clk 0:00:10]} 23. e4 {[%clk 0:00:20]}  dxe4 {[%clk 0:00:10]} 24. Re1 {[%clk 0:00:20]}  Kd8 {[%clk 0:00:07]} 25. Bxe4 {[%clk 0:00:20]}  Nxe4 {[%clk 0:00:08]} 26. Rxe4 {[%clk 0:00:20]}  Kc8 {[%clk 0:00:06]} 27. d5 {[%clk 0:00:18]}  Bd7 {[%clk 0:00:04]} 28. Qa6+ {[%clk 0:00:10]}  Qb7 {[%clk 0:00:04]} 29. Qa3 {[%clk 0:00:10]}  cxd5 {[%clk 0:00:03]} 30. Nxd5 {[%clk 0:00:11]}  Ne6 {[%clk 0:00:03]} 31. Rxe6 {[%clk 0:00:06]}  Bxe6 {[%clk 0:00:03]} 32. Rf8+ {[%clk 0:00:06]}  Rxf8 {[%clk 0:00:02]} 33. Qxf8+ {[%clk 0:00:07]}  Kd7 {[%clk 0:00:03]} 34. Qe7+ {[%clk 0:00:07]}  Kc6 {[%clk 0:00:04]} 35. Nb4# {[%clk 0:00:05]} 1-0


[Site "https://www.chess.com"]

[Event "Titled Tuesday Blitz August 22 Early 2023"]
[White "Baghdasaryan, Vahe"]
[Black "Blanco Ronquillo, Humberto L."]
[WhiteFideId "13303139"]
[BlackFideId "3504239"]
[WhiteElo "2428"]
[BlackElo "2740"]
[Result "0-1"]
[Round "1"]
[TimeControl "180+1"]
[Date "2023.08.22"]
[WhiteClock "0:00:06"]
[BlackClock "0:00:41"]
[Board "87"]

1. e4 {[%clk 0:03:00]}  e5 {[%clk 0:02:56]} 2. Nf3 {[%clk 0:03:00]}  Nc6 {[%clk 0:02:56]} 3. Nc3 {[%clk 0:03:01]}  Nf6 {[%clk 0:02:56]} 4. a3 {[%clk 0:03:01]}  Bd6 {[%clk 0:02:28]} 5. d4 {[%clk 0:02:47]}  exd4 {[%clk 0:02:26]} 6. Nxd4 {[%clk 0:02:48]}  Nxd4 {[%clk 0:02:26]} 7. Qxd4 {[%clk 0:02:47]}  O-O {[%clk 0:02:26]} 8. Bg5 {[%clk 0:02:44]}  Re8 {[%clk 0:02:25]} 9. Bc4 {[%clk 0:02:40]}  Be5 {[%clk 0:02:22]} 10. Qd3 {[%clk 0:02:26]}  h6 {[%clk 0:02:20]} 11. Bh4 {[%clk 0:02:08]}  g5 {[%clk 0:02:11]} 12. Bg3 {[%clk 0:02:08]}  Bxc3+ {[%clk 0:02:08]} 13. bxc3 {[%clk 0:02:05]}  d5 {[%clk 0:01:52]} 14. Bb3 {[%clk 0:01:56]}  Rxe4+ {[%clk 0:01:50]} 15. Kd2 {[%clk 0:01:38]}  c5 {[%clk 0:01:37]} 16. f3 {[%clk 0:00:20]}  c4 {[%clk 0:01:36]} 17. Qf1 {[%clk 0:00:19]}  Re7 {[%clk 0:01:36]} 18. Ba2 {[%clk 0:00:19]}  d4 {[%clk 0:01:27]} 19. Qxc4 {[%clk 0:00:18]}  Be6 {[%clk 0:01:26]} 20. Qd3 {[%clk 0:00:18]}  dxc3+ {[%clk 0:01:25]} 21. Kxc3 {[%clk 0:00:18]}  Rd7 {[%clk 0:01:08]} 22. Qb5 {[%clk 0:00:15]}  Bxa2 {[%clk 0:01:04]} 23. Rxa2 {[%clk 0:00:16]}  Nd5+ {[%clk 0:01:02]} 24. Kb2 {[%clk 0:00:16]}  Qf6+ {[%clk 0:01:02]} 25. Kc1 {[%clk 0:00:14]}  Rad8 {[%clk 0:00:53]} 26. Be5 {[%clk 0:00:14]}  Qxe5 {[%clk 0:00:52]} 27. c4 {[%clk 0:00:13]}  Qe3+ {[%clk 0:00:50]} 28. Kc2 {[%clk 0:00:08]}  Nc3 {[%clk 0:00:46]} 29. Raa1 {[%clk 0:00:06]}  Rd2+ {[%clk 0:00:45]} 30. Kb3 {[%clk 0:00:07]}  Nxb5+ {[%clk 0:00:41]} 31. Kb4 {[%clk 0:00:06]} 0-1


[Site "https://www.chess.com"]